bitfinex/quotes_ETHUSD_20240910
["timestamp","ask_amount","ask_price","bid_price","bid_amount"]
[1725935632375,2.3972,2349.5,2349.0,0.08512945]
[1725935632615,2.3972,2349.5,2349.0,0.51131253]
[1725935633132,2.3972,2349.5,2349.1,0.08512945]
[1725935633718,2.3972,2349.5,2349.0,0.08512945]
[1725935634295,0.1187727,2349.6,2349.1,3.81057114]
[1725935634497,0.1187727,2349.6,2349.2,0.08512184]
[1725935634807,0.1187727,2349.6,2349.2,0.47469114]
[1725935635621,0.1187727,2349.6,2349.2,0.3895693]
[1725935636023,0.1187727,2349.6,2349.1,0.55]
[1725935636186,0.1187727,2349.6,2349.0,0.55]
[1725935636497,0.1187727,2349.6,2349.1,5.64469301]
[1725935638216,0.1187727,2349.6,2349.2,1.50462969]
[1725935638522,0.1187727,2349.6,2349.3,0.08512151]
[1725935638827,0.1187727,2349.6,2349.3,0.47399663]
[1725935639022,0.1187727,2349.6,2349.3,0.38887512]
[1725935639727,0.1187727,2349.6,2349.3,0.47399664]
[1725935640240,0.1187727,2349.6,2349.0,2.05462969]
[1725935640241,0.2251746,2349.6,2349.0,2.05462969]
[1725935640536,2.3109,2349.5,2348.9,0.91613022]
[1725935640692,2.3109,2349.5,2349.0,1.50462969]
[1725935641032,2.3109,2349.5,2349.1,0.08512952]
[1725935642537,2.3109,2349.5,2349.2,1.50462969]
[1725935642826,2.3109,2349.5,2349.2,1.58975536]
[1725935643027,0.1187727,2349.6,2349.3,0.08512326]
[1725935644939,0.1187727,2349.6,2349.3,0.31354714]
[1725935646729,0.1187727,2349.6,2349.1,0.08512198]
[1725935648829,0.1187727,2349.6,2349.1,0.08512214]
[1725935652639,0.1187727,2349.6,2349.1,2.37622214]
[1725935653308,0.1187727,2349.6,2349.2,1.50462969]
[1725935653617,0.1187727,2349.6,2349.3,0.08512217]
[1725935653806,0.1187727,2349.6,2349.3,0.47320726]
[1725935655349,0.1187727,2349.6,2349.3,0.38808519]
[1725935656549,0.1187727,2349.6,2349.5,3.91652969]
[1725935656764,2.3038,2350.2,2349.7,1.50462969]
[1725935657066,2.3038,2350.2,2349.8,0.08510584]
[1725935657268,2.3038,2350.2,2349.8,0.33082961]
[1725935657479,0.10637833,2350.1,2349.7,0.08510811]
[1725935657633,2.3038,2350.2,2349.6,0.08510811]
[1725935658270,2.3038,2350.2,2349.7,1.14599891]
[1725935658539,2.3038,2350.2,2349.6,0.97245576]
[1725935658668,2.3038,2350.2,2349.7,2.86612031]
[1725935658873,2.3038,2350.2,2349.8,0.38385761]
[1725935659087,2.3038,2350.2,2349.7,1.71964041]
[1725935659383,2.3038,2350.2,2349.6,0.97245576]
[1725935659689,2.3038,2350.2,2349.7,2.86740851]
[1725935659849,0.10638738,2350.1,2349.5,0.88734765]
[1725935660174,2.3038,2350.2,2349.6,3.40389571]
[1725935660353,2.3038,2350.2,2349.7,1.1471774]
[1725935660546,2.3038,2350.2,2349.6,0.53595221]
[1725935660777,2.3038,2350.2,2349.7,2.86894999]
[1725935660952,2.3038,2350.2,2349.7,0.56229815]
[1725935661296,2.3038,2350.2,2349.6,1.42329986]
[1725935661461,2.3038,2350.2,2349.7,2.86969258]
[1725935661795,2.2646,2349.7,2349.3,8.24734765]
[1725935662102,2.2646,2349.5,2349.0,0.88734765]
[1725935662246,0.10642151,2349.4,2349.0,1.36498463]
[1725935663148,2.2646,2349.5,2349.0,1.36498463]
[1725935664096,2.2646,2349.5,2349.0,1.45011927]
[1725935664264,2.2646,2349.5,2349.1,0.96974669]
[1725935665487,0.10640942,2349.4,2348.9,7.36]
[1725935665650,0.10640942,2349.4,2349.0,2.87237985]
[1725935665845,0.10640942,2349.4,2348.9,8.24734765]
[1725935666123,0.10640942,2349.4,2349.0,1.14896612]
[1725935666330,0.10640942,2349.4,2348.9,8.24734765]
[1725935666492,0.10640942,2349.4,2349.0,1.97371623]
[1725935666830,0.10640942,2349.4,2349.0,0.82473477]
[1725935668334,0.10640942,2349.4,2348.9,0.08513726]
[1725935668494,0.10640942,2349.4,2349.0,1.14891081]
[1725935668836,2.2646,2349.5,2348.9,0.97248491]
[1725935669139,2.2646,2349.5,2349.0,2.87206555]
[1725935669308,2.2646,2349.5,2348.9,0.97248491]
[1725935669640,2.2646,2349.5,2349.0,3.63212963]
[1725935669960,0.66685345,2349.9,2349.3,3.26111369]
[1725935670162,0.66685345,2349.9,2349.6,3.37254765]
[1725935670464,2.3156,2350.4,2349.7,7.10505213]
[1725935670658,2.98228878,2350.4,2349.8,4.5986877]
[1725935670863,2.3156,2350.4,2349.8,1.17719536]
[1725935671019,0.10637505,2350.3,2349.8,0.08509698]
[1725935671220,2.3156,2350.4,2349.8,1.80594261]
[1725935671458,2.3156,2350.4,2349.8,0.08509698]
[1725935672348,2.3156,2350.4,2349.8,1.23133054]
[1725935672547,2.3156,2350.4,2349.8,0.08509698]
[1725935672746,2.3156,2350.4,2349.8,0.60284124]
[1725935676875,2.3156,2350.4,2349.8,0.08509698]
[1725935677835,0.10637636,2350.3,2349.6,2.4852]
[1725935678029,0.10637636,2350.3,2349.7,0.63510119]
[1725935678258,0.10637636,2350.3,2349.8,0.08510119]
[1725935678657,0.10637636,2350.3,2349.6,5.4852]
[1725935678938,0.10637636,2350.3,2349.7,0.54852]
[1725935679152,0.10637636,2350.3,2349.4,4.86778028]
[1725935679352,2.3166,2350.2,2349.4,2.2619]
[1725935679548,0.10639282,2350.1,2349.4,5.2619]
[1725935679771,0.10639282,2350.1,2349.5,0.08511416]
[1725935679933,0.10639282,2350.1,2349.5,0.61981558]
[1725935681840,0.10639282,2350.1,2349.5,0.53470142]
[1725935682244,0.10639282,2350.1,2349.5,0.61981558]
[1725935684776,0.10639282,2350.1,2349.5,0.53470142]
[1725935685983,0.10639282,2350.1,2349.5,0.61981558]
[1725935686192,0.10639282,2350.1,2349.5,0.53470142]
[1725935686761,0.10639282,2350.1,2349.9,0.00444445]
[1725935689299,2.5940927,2350.4,2349.9,0.00444445]
[1725935689663,2.5940927,2350.4,2349.9,0.2398889]
[1725935691563,0.1063927,2350.4,2349.9,0.2398889]
[1725935691964,0.4452915,2350.5,2349.9,0.32499391]
[1725935693021,0.1063678,2350.4,2349.9,0.32499391]
[1725935693510,0.4452915,2350.5,2349.9,0.32499391]
[1725935694076,0.4452915,2350.5,2349.9,3.5861076]
[1725935694315,0.4452915,2350.5,2350.0,3.38051076]
[1725935694487,0.4452915,2350.5,2350.1,0.08508846]
[1725935700938,0.4452915,2350.5,2350.0,2.83051076]
[1725935701094,2.4305,2350.4,2350.0,0.44370744]
[1725935701629,2.4305,2350.4,2350.1,0.36835963]
[1725935702438,0.4452915,2350.5,2350.1,0.36835963]
[1725935702728,2.4463,2350.4,2350.1,0.36835963]
[1725935702906,2.4463,2350.4,2350.0,0.44370743]
[1725935703105,2.4463,2350.4,2350.0,0.35861076]
[1725935703796,2.5526709,2350.4,2350.0,0.35861076]
[1725935704423,2.5526709,2350.4,2349.9,0.00444445]
[1725935704642,2.5526709,2350.4,2349.9,0.0895455]
[1725935705340,2.5526709,2350.4,2349.9,0.00444445]
[1725935709255,2.5526709,2350.4,2349.9,2.25734445]
[1725935709864,2.5526709,2350.4,2349.9,0.00444445]
[1725935710064,2.85246714,2350.4,2349.9,0.00444445]
[1725935720219,1.50467913,2350.0,2349.9,0.00444445]
[1725935720503,4.08658324,2350.0,2349.9,0.00444445]
[1725935721970,7.08658324,2350.0,2349.9,0.00444445]
[1725935722171,7.08658324,2350.0,2349.3,7.36]
[1725935722172,2.4242,2349.9,2349.3,7.36]
[1725935722369,3.26273229,2349.4,2348.9,7.36]
[1725935722591,3.26273229,2349.2,2348.6,2.3047]
[1725935722773,0.10644585,2349.1,2348.6,2.3047]
[1725935723514,0.10644585,2349.1,2348.6,2.38985667]
[1725935723970,3.3691672,2349.4,2348.6,2.38985667]
[1725935724165,3.3691672,2349.4,2348.6,3.36484234]
[1725935724166,3.0,2349.3,2348.6,3.36484234]
[1725935724367,0.10643491,2349.2,2348.6,3.36484234]
[1725935726114,0.10643491,2349.2,2348.6,3.27968567]
[1725935728115,0.10643491,2349.2,2348.6,2.3047]
[1725935730145,0.10643491,2349.2,2348.3,7.36]
[1725935730348,0.10643491,2349.2,2348.4,2.3832]
[1725935730646,2.269,2349.1,2348.4,2.3832]
[1725935730949,0.10644753,2349.0,2348.4,2.3832]
[1725935731104,0.10644753,2349.0,2348.4,3.35752]
[1725935733460,3.36917982,2349.0,2348.4,0.97432]
[1725935733755,2.4369,2348.5,2348.1,7.36]
[1725935733904,2.4369,2348.5,2347.8,2.3154]
[1725935733905,0.10646387,2348.4,2347.8,2.3154]
[1725935734109,3.36919616,2348.4,2347.8,2.3154]
[1725935734308,3.36919616,2348.4,2347.8,3.28294]
[1725935736515,0.10646387,2348.4,2347.8,3.28294]
[1725935737609,3.36919616,2348.4,2347.8,3.28294]
[1725935738715,0.10646387,2348.4,2347.8,3.28294]
[1725935739423,0.10646387,2348.4,2347.8,3.36811857]
[1725935739628,0.1064673,2348.6,2347.9,1.07281186]
[1725935739942,0.1064673,2348.6,2347.8,3.36811857]
[1725935750343,2.264,2348.5,2347.9,0.08517369]
[1725935750538,0.10646711,2348.4,2347.9,0.08517369]
[1725935750740,0.10646711,2348.4,2347.6,5.4301]
[1725935750929,2.264,2348.3,2347.6,5.4301]
[1725935751135,0.10647257,2348.2,2347.6,5.4301]
[1725935751468,0.10647257,2348.2,2347.6,6.70911]
[1725935753347,2.264,2348.3,2347.7,0.08517804]
[1725935753767,2.38917256,2348.5,2347.7,0.08517804]
[1725935766571,2.38917256,2348.5,2347.8,1.1568442]
[1725935767590,2.38917256,2348.5,2347.8,1.73203534]
[1725935767913,2.4609,2348.7,2348.0,2.3363]
[1725935768114,0.10647255,2349.3,2348.1,5.37239357]
[1725935768115,2.4609,2349.0,2348.1,5.37239357]
[1725935768409,0.10644531,2348.9,2348.2,5.22939406]
[1725935768591,0.10644531,2348.9,2348.3,2.06826393]
[1725935768766,0.10644531,2348.9,2348.3,0.91102631]
[1725935769512,1.50679228,2348.6,2348.0,3.18034765]
[1725935769677,0.10645942,2348.5,2348.0,2.293]
[1725935770007,2.3885,2348.4,2347.8,4.25478792]
[1725935770235,2.3885,2348.4,2347.9,2.89408232]
[1725935770399,0.10646219,2348.3,2347.8,0.88734765]
[1725935770717,0.10646219,2348.3,2347.7,2.62437361]
[1725935770879,0.10646219,2348.3,2347.8,2.89507371]
[1725935771079,0.10646219,2348.3,2347.8,1.73702596]
[1725935771491,0.10646219,2348.3,2347.6,11.90585765]
[1725935771692,0.10646219,2348.3,2347.7,5.1066964]
[1725935771923,0.10646219,2348.3,2347.8,2.89568982]
[1725935772122,0.10646219,2348.3,2347.8,1.73741389]
[1725935772297,0.10646219,2348.3,2347.7,2.21100658]
[1725935772630,0.10646219,2348.3,2347.8,2.89625298]
[1725935772830,0.10646219,2348.3,2347.7,2.21100658]
[1725935773000,0.10646219,2348.3,2347.8,2.89665917]
[1725935773320,0.10646219,2348.3,2347.9,1.15864521]
[1725935773477,0.10646219,2348.3,2347.8,1.73798724]
[1725935773678,0.10646219,2348.3,2347.9,1.15880994]
[1725935773909,0.10646219,2348.3,2347.8,1.73820363]
[1725935774095,0.10646219,2348.3,2347.9,1.15881062]
[1725935774308,0.10646219,2348.3,2347.8,1.73821785]
[1725935774507,0.10646219,2348.3,2347.9,1.15880835]
[1725935774692,0.10646219,2348.3,2347.7,2.21100658]
[1725935774693,0.54665515,2348.3,2347.7,0.88734765]
[1725935774901,0.10647245,2348.2,2347.8,2.89789358]
[1725935775088,0.10647245,2348.2,2347.9,1.1592209]
[1725935775293,0.10647245,2348.2,2347.7,0.88734765]
[1725935775500,0.10647245,2348.2,2347.8,2.89956465]
[1725935775696,0.10647245,2348.2,2347.9,1.15981866]
[1725935775903,0.10647241,2348.3,2347.7,0.88734765]
[1725935776099,0.10647241,2348.3,2347.8,2.90036585]
[1725935776299,0.10647241,2348.3,2347.9,1.16014634]
[1725935776531,0.10647241,2348.3,2347.8,0.88734765]
[1725935776835,0.10647241,2348.3,2347.9,2.90114391]
[1725935777011,0.10647241,2348.3,2347.8,0.88734765]
[1725935777201,0.10647241,2348.3,2347.9,2.90122155]
[1725935777399,0.10647241,2348.3,2347.8,0.88734765]
[1725935777607,2.3623,2348.2,2347.9,2.90197879]
[1725935777838,2.3623,2348.2,2347.8,0.88734765]
[1725935778041,2.3623,2348.2,2347.9,2.90270046]
[1725935778204,2.3623,2348.2,2347.7,0.88734765]
[1725935778523,2.3623,2348.2,2347.8,2.90285378]
[1725935778732,2.3623,2348.2,2347.9,1.16114151]
[1725935778883,2.3623,2348.2,2347.7,0.88734765]
[1725935779233,2.3623,2348.2,2347.8,2.9034334]
[1725935779542,2.3623,2348.2,2347.9,2.90371523]
[1725935779687,2.3623,2348.2,2347.8,0.88734765]
[1725935780029,2.3623,2348.2,2347.9,2.90412091]
[1725935780227,2.3623,2348.2,2347.8,0.88734765]
[1725935780387,2.3623,2348.2,2347.9,2.90520815]
[1725935780594,2.3623,2348.2,2347.8,0.88734765]
[1725935780795,2.3623,2348.2,2347.9,2.90478915]
[1725935781144,2.3623,2348.2,2348.0,1.16191566]
[1725935781288,2.3623,2348.2,2347.8,0.88734765]
[1725935781612,2.3623,2348.2,2347.9,2.90482068]
[1725935781818,2.3623,2348.2,2348.0,2.90463685]
[1725935782125,2.3623,2348.2,2347.9,0.88734765]
[1725935782326,2.3623,2348.2,2348.0,1.1618461]
[1725935782537,0.10647241,2348.3,2347.9,1.18566843]
[1725935782763,0.10647241,2348.3,2348.0,2.90435723]
[1725935783033,0.10647241,2348.3,2347.9,1.18566843]
[1725935783191,0.10647241,2348.3,2348.0,2.90454923]
[1725935783398,0.10647241,2348.3,2347.9,1.18566843]
[1725935783720,0.10647241,2348.3,2348.0,1.16183988]
[1725935783898,0.10647241,2348.3,2347.8,0.88734765]
[1725935784102,0.10647241,2348.3,2347.9,2.90474115]
[1725935784307,0.10647241,2348.3,2348.0,1.16189646]
[1725935784503,0.10647241,2348.3,2347.8,0.88734765]
[1725935784720,0.10647241,2348.3,2347.9,2.90460981]
[1725935784924,0.10647241,2348.3,2348.0,1.16184392]
[1725935785120,0.10647241,2348.3,2347.8,1.73750674]
[1725935785322,0.10647241,2348.3,2347.9,2.90504155]
[1725935785521,0.10647241,2348.3,2348.0,1.16201662]
[1725935785731,0.10647241,2348.3,2347.8,1.73750674]
[1725935785930,0.10647241,2348.3,2347.9,3.79215676]
[1725935786131,0.10647241,2348.3,2348.0,2.90480911]
[1725935786337,0.10647241,2348.3,2347.8,1.73750674]
[1725935786494,0.10647241,2348.3,2347.9,2.90479555]
[1725935786700,0.10647241,2348.3,2348.0,1.16191822]
[1725935786894,0.10647241,2348.3,2347.8,1.73750674]
[1725935787100,0.10647241,2348.3,2347.9,2.90465512]
[1725935787304,0.10647241,2348.3,2348.0,1.16186205]
[1725935787496,0.10647241,2348.3,2347.8,1.73750674]
[1725935787696,0.10647241,2348.3,2347.9,2.9044449]
[1725935788039,0.10647241,2348.3,2348.0,1.16177796]
[1725935788243,0.10647241,2348.3,2347.8,1.73750674]
[1725935788535,0.10647241,2348.3,2347.9,2.90443278]
[1725935788720,0.10647241,2348.3,2348.0,1.16177311]
[1725935788924,0.10647241,2348.3,2347.8,1.73750674]
[1725935789093,0.10647241,2348.3,2347.9,3.28791677]
[1725935789299,0.10647241,2348.3,2348.0,1.16183203]
[1725935789530,0.10647241,2348.3,2347.9,0.38333669]
[1725935789835,0.10647241,2348.3,2348.0,1.16184925]
[1725935790001,0.10647241,2348.3,2347.9,0.38333669]
[1725935790194,0.10647241,2348.3,2348.0,1.16182813]
[1725935790396,0.10647241,2348.3,2347.9,1.27068434]
[1725935790619,2.6055721,2348.4,2348.0,2.90450902]
[1725935790796,0.10646638,2348.5,2348.1,1.16173804]
[1725935790995,0.10646638,2348.5,2348.0,1.62808066]
[1725935791198,0.10646638,2348.5,2348.1,2.9039095]
[1725935791423,0.10646638,2348.5,2348.2,1.1615638]
[1725935791621,0.10646638,2348.5,2348.0,1.62808066]
[1725935791833,0.10646638,2348.5,2348.1,3.79158171]
[1725935792035,2.3157,2349.3,2348.2,3.45849362]
[1725935792236,0.08464569,2349.2,2348.4,0.88734765]
[1725935792406,0.10643388,2349.2,2348.6,0.88734765]
[1725935792605,2.42212762,2349.6,2348.8,2.2968]
[1725935792809,2.3157,2349.6,2348.9,6.06277302]
[1725935793005,2.3157,2349.8,2349.1,0.88734765]
[1725935793205,0.10640785,2349.7,2349.2,2.90420497]
[1725935793495,0.10640785,2349.7,2349.1,1.82763763]
[1725935793734,0.10640785,2349.7,2349.1,0.08512628]
[1725935793948,0.34861864,2349.7,2349.1,0.08512628]
[1725935794148,0.34861864,2349.7,2349.0,0.08512681]
[1725935794721,0.07908636,2349.6,2349.0,0.08512681]
[1725935796503,0.07908636,2349.6,2349.1,2.2888]
[1725935796715,0.07908636,2349.6,2349.2,0.08511987]
[1725935796940,0.10640959,2349.9,2349.2,0.52819108]
[1725935797123,0.07907346,2349.5,2349.3,0.08511986]
[1725935797312,0.10639984,2350.0,2349.3,1.59191214]
[1725935797517,0.07903922,2349.4,2349.3,1.59191214]
[1725935797843,2.4707,2350.1,2349.3,2.14191214]
[1725935798045,0.07646419,2350.0,2349.4,0.25849833]
[1725935798245,0.07646419,2350.0,2349.5,0.08511405]
[1725935798610,0.07646419,2350.0,2349.5,2.37391405]
[1725935798817,0.07646419,2350.0,2349.5,3.88070633]
[1725935799033,2.4707,2350.5,2349.7,1.50679228]
[1725935799034,0.10637582,2350.4,2349.7,1.50679228]
[1725935799233,0.10637582,2350.4,2349.8,0.08510062]
[1725935799553,0.0739158,2350.3,2349.8,0.08510062]
[1725935799903,0.10637582,2350.4,2349.8,0.08510062]
[1725935800637,0.0739158,2350.3,2349.8,0.08510062]
[1725935808770,0.0739158,2350.3,2349.9,2.4037]
[1725935808975,0.0739158,2350.3,2350.0,0.88397019]
[1725935809290,0.07253059,2350.2,2350.0,0.88397019]
[1725935809779,2.4707,2350.5,2350.0,0.88397019]
[1725935809941,0.07251769,2350.1,2350.0,0.88397019]
[1725935810143,2.4707,2350.5,2350.0,0.88397019]
[1725935810364,2.4707,2350.5,2350.1,0.47944625]
[1725935810554,0.07255638,2350.4,2350.2,0.08509014]
[1725935812475,2.49826273,2350.7,2350.2,0.08509014]
[1725935812781,0.07254348,2350.3,2350.2,0.08509014]
[1725935812992,2.49826273,2350.7,2350.2,0.08509014]
[1725935813492,0.07382813,2350.6,2350.2,0.08509014]
[1725935818806,0.07382813,2350.6,2350.3,2.2544]
[1725935818986,2.4577,2351.0,2350.4,1.82581766]
[1725935819186,0.06697847,2350.5,2350.4,1.82581766]
[1725935819388,2.4577,2351.0,2350.4,0.23394901]
[1725935819389,0.10634773,2350.9,2350.4,0.23394901]
[1725935819901,0.06701714,2350.8,2350.4,0.23394901]
[1725935820631,2.4577,2350.7,2350.1,2.73384625]
[1725935820795,0.06699137,2350.6,2350.2,0.08509013]
[1725935822101,0.06699137,2350.6,2350.2,2.57419013]
[1725935822301,0.06699137,2350.6,2350.3,0.08508387]
[1725935822500,2.56886264,2350.9,2350.3,0.39044688]
[1725935822713,0.06697847,2350.5,2350.3,0.39044688]
[1725935822986,0.06696558,2350.4,2350.3,0.39044688]
[1725935823189,2.56886264,2350.9,2350.3,0.39044688]
[1725935823625,0.06701714,2350.8,2350.3,0.39044688]
[1725935834507,0.06701714,2350.8,2350.0,2.8202]
[1725935834844,2.4812,2350.7,2350.0,2.2702]
[1725935834995,0.10636555,2350.6,2350.0,2.2702]
[1725935835341,0.10636555,2350.6,2350.1,0.96302]
[1725935835635,0.06705014,2350.5,2350.1,0.96302]
[1725935835806,0.06705014,2350.5,2350.1,1.04811152]
[1725935836743,0.06705014,2350.5,2350.1,0.96302]
[1725935837045,0.06705014,2350.5,2349.8,2.4984]
[1725935837046,2.3524,2350.4,2349.8,2.4984]
[1725935837280,2.3524,2350.4,2349.8,7.24377146]
[1725935837537,2.3524,2350.4,2349.9,2.99703603]
[1725935837735,2.3524,2350.4,2349.9,0.08510023]
[1725935838040,2.3524,2350.4,2349.9,3.86525818]
[1725935838333,2.3524,2350.4,2350.0,1.16566031]
[1725935838537,2.3524,2350.4,2349.9,3.86525818]
[1725935838744,2.3524,2350.4,2350.0,1.16571054]
[1725935838890,2.3524,2350.4,2349.9,3.86525818]
[1725935839094,2.3524,2350.4,2350.0,1.16570464]
[1725935839332,2.3524,2350.4,2349.9,3.86525818]
[1725935839535,2.3524,2350.4,2350.0,1.16600467]
[1725935839707,2.3524,2350.4,2349.9,3.86525818]
[1725935839910,2.3524,2350.4,2350.0,3.64018105]
[1725935840238,2.3524,2350.4,2350.0,0.72510058]
[1725935840536,2.4423,2350.2,2349.5,8.24734765]
[1725935840698,0.10639654,2350.1,2349.6,2.91690298]
[1725935841040,2.4423,2350.2,2349.7,1.16667774]
[1725935841041,2.54869652,2350.2,2349.7,1.16667774]
[1725935841331,0.06648906,2350.1,2349.8,3.35901084]
[1725935841538,0.06648906,2350.1,2349.8,0.35785777]
[1725935841741,3.0,2350.6,2349.6,6.07609746]
[1725935841742,2.4528,2350.0,2349.6,0.88734765]
[1725935841899,2.4528,2350.2,2349.7,2.91706458]
[1725935842237,0.17288084,2350.1,2349.5,8.24734765]
[1725935842535,2.3707,2350.0,2349.6,2.9185672]
[1725935842706,2.3707,2350.0,2349.6,1.41569609]
[1725935842912,0.06645764,2349.9,2349.6,1.41569609]
[1725935843119,2.3707,2350.0,2349.6,1.41569609]
[1725935843310,2.3707,2350.0,2349.5,0.88734765]
[1725935843507,0.06640016,2349.9,2349.6,2.91946728]
[1725935843845,0.06638727,2349.8,2349.4,0.88734765]
[1725935844139,0.10639464,2349.9,2349.3,1.55341415]
[1725935844322,0.10639464,2349.9,2349.4,2.9196784]
[1725935844532,0.10639464,2349.9,2349.2,3.92233748]
[1725935844834,0.10639464,2349.9,2349.3,4.33134891]
[1725935845052,0.10639464,2349.9,2349.3,1.41179108]
[1725935845416,2.462,2349.8,2349.3,1.41179108]
[1725935845615,0.10640164,2349.7,2349.3,1.41179108]
[1725935847763,0.10640164,2349.7,2349.1,3.25585659]
[1725935848120,0.10640164,2349.7,2349.0,2.3032]
[1725935848332,0.10640164,2349.7,2349.1,1.16696242]
[1725935848860,2.309,2349.6,2349.0,1.75044363]
[1725935849154,0.10641034,2349.5,2349.1,0.99977913]
[1725935850532,2.3833,2349.4,2349.1,0.99977913]
[1725935852978,0.10641536,2349.6,2349.1,0.99977913]
[1725935852979,2.46551536,2349.6,2349.1,0.99977913]
[1725935859505,2.46551536,2349.6,2348.9,9.7597]
[1725935861875,2.46551536,2349.6,2348.7,3.89694163]
[1725935863107,2.46551536,2349.6,2348.8,0.08513321]
[1725935863294,2.46551536,2349.6,2348.9,1.50484163]
[1725935863498,2.46551536,2349.6,2349.0,0.08513311]
[1725935871619,2.46551536,2349.6,2348.7,2.3921]
[1725935871790,2.46551536,2349.6,2348.8,1.23852491]
[1725935876642,2.46551536,2349.6,2348.9,1.16557075]
[1725935876792,2.46551536,2349.6,2348.8,1.23852491]
[1725935877192,2.46551536,2349.6,2348.9,1.16560961]
[1725935880621,2.46551536,2349.6,2349.0,1.16560961]
[1725935880831,2.46551536,2349.6,2349.0,0.50398359]
[1725935881127,2.46551536,2349.6,2348.8,1.23852491]
[1725935881524,2.46551536,2349.6,2348.8,2.98882915]
[1725935881731,2.46551536,2349.6,2348.9,1.16718134]
[1725935881896,2.46551536,2349.6,2348.8,2.98882915]
[1725935882595,2.46551536,2349.6,2348.9,1.16718597]
[1725935882818,2.46551536,2349.6,2348.9,0.32930585]
[1725935884443,2.46551536,2349.6,2348.9,2.08120773]
[1725935884600,2.46551536,2349.6,2349.0,1.16834775]
[1725935884799,2.46551536,2349.6,2348.9,0.32930585]
[1725935885034,2.46551536,2349.6,2349.0,1.16833971]
[1725935885192,2.46551536,2349.6,2348.9,0.32930585]
[1725935885396,2.46551536,2349.6,2349.0,1.16831809]
[1725935885624,1.50484163,2349.5,2348.9,1.2166535]
[1725935885932,3.16255106,2349.6,2348.7,3.66109845]
[1725935885933,2.4925,2349.2,2348.7,0.88734765]
[1725935886250,0.10642751,2349.1,2348.8,2.91811368]
[1725935886538,0.10642751,2349.1,2348.7,0.88734765]
[1725935886705,0.10642751,2349.1,2348.8,3.37381459]
[1725935887037,0.10642751,2349.1,2348.8,0.45484461]
[1725935887204,2.59892748,2349.2,2348.9,1.1675386]
[1725935887407,2.4925,2349.2,2348.8,1.34219226]
[1725935887607,0.065178,2349.1,2348.9,4.30897892]
[1725935887824,2.43862723,2349.4,2349.0,2.9194747]
[1725935888035,2.43862723,2349.4,2349.1,1.16780961]
[1725935888234,2.43862723,2349.4,2348.9,1.38950422]
[1725935888409,0.17159166,2349.3,2349.0,3.80643348]
[1725935888608,0.17159166,2349.3,2349.1,1.16763433]
[1725935888849,0.17159166,2349.3,2348.9,1.38950422]
[1725935889053,0.17159166,2349.3,2349.0,3.47098577]
[1725935889357,0.17159166,2349.3,2349.1,1.16795645]
[1725935889515,0.17159166,2349.3,2349.0,1.43844229]
[1725935889716,0.17159166,2349.3,2349.1,1.16821797]
[1725935889951,0.17159166,2349.3,2349.0,0.55109464]
[1725935890253,0.17159166,2349.3,2349.1,1.16821409]
[1725935890459,2.4164,2349.2,2348.9,1.38950422]
[1725935890754,2.4164,2349.2,2349.0,2.9207925]
[1725935891048,2.4164,2349.2,2349.1,1.16833036]
[1725935891457,2.48155609,2349.2,2349.1,1.16833036]
[1725935892742,2.48155609,2349.2,2348.9,1.38950422]
[1725935893050,2.48155609,2349.2,2349.0,2.92118633]
[1725935893257,2.48155609,2349.2,2348.9,1.38950422]
[1725935893258,2.4164,2349.2,2348.9,1.38950422]
[1725935893471,2.4164,2349.2,2349.0,2.91965252]
[1725935893621,2.4164,2349.2,2348.9,0.50215657]
[1725935893822,2.4164,2349.2,2349.0,2.91997615]
[1725935894029,2.4164,2349.2,2348.9,1.38950422]
[1725935894352,0.10642716,2349.1,2349.0,2.91988602]
[1725935894557,2.4164,2349.2,2349.0,1.16795441]
[1725935894720,0.10642754,2349.1,2348.8,0.88734765]
[1725935894921,0.10642754,2349.1,2348.9,2.91991163]
[1725935895162,0.10642754,2349.1,2349.0,1.16796465]
[1725935895562,0.10642754,2349.1,2349.0,1.16796804]
[1725935896917,0.10642754,2349.1,2348.8,0.88734765]
[1725935897057,2.4331,2349.0,2348.9,2.91980003]
[1725935897255,2.4331,2348.9,2348.6,0.88734765]
[1725935897452,1.61128776,2348.8,2348.5,0.88734765]
[1725935897697,1.50484163,2348.8,2348.6,1.16794279]
[1725935897867,1.50484163,2348.8,2348.3,8.69073165]
[1725935897868,2.4331,2348.7,2348.5,0.88734765]
[1725935898204,2.4331,2348.7,2348.6,1.1679477]
[1725935898701,2.4331,2348.7,2348.4,0.88734765]
[1725935898873,2.4331,2348.7,2348.5,2.91896303]
[1725935899068,2.4331,2348.7,2348.4,1.52021874]
[1725935899321,2.4331,2348.7,2348.5,2.91992685]
[1725935899604,2.4331,2348.7,2348.4,0.88734765]
[1725935899760,2.4331,2348.7,2348.5,2.92010571]
[1725935899964,2.4331,2348.7,2348.4,0.88734765]
[1725935900287,2.4331,2348.7,2348.5,2.92030197]
[1725935900488,2.4331,2348.7,2348.4,1.52021874]
[1725935900684,2.4331,2348.7,2348.5,2.91975313]
[1725935900872,2.4331,2348.7,2348.4,1.52021874]
[1725935901080,2.41904831,2348.9,2348.5,2.9197794]
[1725935901283,2.41904831,2348.9,2348.5,0.45251568]
[1725935901461,2.41904831,2348.9,2348.4,0.63287109]
[1725935901660,0.06479819,2348.8,2348.5,1.16772285]
[1725935901980,0.06479819,2348.8,2348.4,0.63287109]
[1725935902190,0.06479819,2348.8,2348.6,2.379]
[1725935902382,0.10644825,2349.1,2348.7,1.16753973]
[1725935902702,2.3578,2349.4,2348.8,1.60707257]
[1725935902998,2.46423489,2349.4,2348.8,0.43980188]
[1725935903795,2.46423489,2349.4,2348.8,0.35465397]
[1725935908086,3.96907652,2349.4,2348.8,0.35465397]
[1725935910286,4.66598417,2349.4,2348.7,0.08514125]
[1725935910498,4.66598417,2349.4,2348.8,1.16725092]
[1725935910703,4.66598417,2349.4,2348.7,0.08514125]
[1725935911300,3.96907652,2349.4,2348.7,0.08514125]
[1725935911503,3.96907652,2349.4,2348.8,1.16730763]
[1725935911736,3.96907652,2349.4,2348.7,0.08514125]
[1725935912197,3.96907652,2349.4,2348.8,1.16733168]
[1725935912400,3.96907652,2349.4,2348.7,0.08514125]
[1725935912700,3.96907652,2349.4,2348.8,1.1673661]
[1725935912899,3.96907652,2349.4,2348.7,1.28936331]
[1725935913139,3.96907652,2349.4,2348.8,1.16735833]
[1725935913431,3.96907652,2349.4,2348.7,1.28936331]
[1725935913637,3.96907652,2349.4,2348.8,2.91813428]
[1725935913823,2.46423489,2349.4,2348.8,0.88045769]
[1725935914693,3.96907652,2349.4,2348.7,2.84297431]
[1725935914899,3.96907652,2349.4,2348.8,1.1673527]
[1725935914900,2.4876,2349.3,2348.8,1.1673527]
[1725935915101,0.1064304,2349.2,2348.7,1.28936331]
[1725935915402,0.1064304,2349.2,2348.8,1.16744442]
[1725935915603,2.4876,2349.1,2348.6,0.88734765]